fUST/lending_fUST_20260207
["ID","MTS","AMOUNT","RATE_DAILY","PERIOD"]
[404685550,1770443446607,-856.62067,0.00027397,2]
[404685551,1770443446617,-856.62067,0.00027397,2]
[404685552,1770443446626,-856.62067,0.00027397,2]
[404685553,1770443446635,-856.62067,0.00027397,2]
[404685554,1770443446643,-856.62067,0.00027397,2]
[404685555,1770443446652,-856.62067,0.00027397,2]
[404685556,1770443446661,-856.62067,0.00027397,2]
[404685557,1770443446670,-856.62067,0.00027397,2]
[404685558,1770443446679,-856.62067,0.00027397,2]
[404685559,1770443446689,-856.62067,0.00027397,2]
[404685560,1770443446698,-856.62067,0.00027397,2]
[404685561,1770443446707,-856.62067,0.00027397,2]
[404685562,1770443446717,-856.62066,0.00027397,2]
[404685563,1770443446726,-151.0,0.00027397,2]
[404685564,1770443446735,-151.0,0.00027397,2]
[404685565,1770443446744,-151.0,0.00027397,2]
[404685566,1770443446754,-151.0,0.00027397,2]
[404685567,1770443446763,-151.0,0.00027397,2]
[404685568,1770443446772,-151.0,0.00027397,2]
[404685569,1770443446781,-151.0,0.00027397,2]
[404685570,1770443446791,-151.0,0.00027397,2]
[404685571,1770443446800,-151.0,0.00027397,2]
[404685572,1770443446809,-812.822762,0.00027397,2]
[404685573,1770443446819,-812.822762,0.00027397,2]
[404685574,1770443446828,-203.254262,0.00027397,2]
[404685575,1770443446837,-812.822762,0.00027397,2]
[404685576,1770443446846,-812.822762,0.00027397,2]
[404685577,1770443446856,-812.822762,0.00027397,2]
[404685578,1770443446865,-812.822762,0.00027397,2]
[404685579,1770443446874,-812.822762,0.00027397,2]
[404685580,1770443446883,-812.822762,0.00027397,2]
[404685581,1770443446892,-812.822762,0.00027397,2]
[404685582,1770443446901,-812.822762,0.00027397,2]
[404685583,1770443446910,-812.822762,0.00027397,2]
[404685584,1770443446919,-812.822762,0.00027397,2]
[404685585,1770443446928,-812.822762,0.00027397,2]
[404685586,1770443446938,-812.822762,0.00027397,2]
[404685587,1770443446947,-812.822762,0.00027397,2]
[404685588,1770443446956,-812.822762,0.00027397,2]
[404685589,1770443446965,-812.822762,0.00027397,2]
[404685590,1770443446974,-812.822762,0.00027397,2]
[404685591,1770443446983,-812.822762,0.00027397,2]
[404685592,1770443446992,-812.822762,0.00027397,2]
[404685593,1770443447001,-151.0,0.00027397,2]
[404685594,1770443447011,-169.789659,0.00027397,2]
[404685595,1770443447020,-151.0,0.00027397,2]
[404685596,1770443447030,-151.0,0.00027397,2]
[404685597,1770443447039,-151.0,0.00027397,2]
[404685598,1770443447049,-151.0,0.00027397,2]
[404685599,1770443447059,-151.0,0.00027397,2]
[404685600,1770443447068,-151.0,0.00027397,2]
[404685601,1770443447077,-151.0,0.00027397,2]
[404685602,1770443447087,-151.0,0.00027397,2]
[404685603,1770443447096,-151.0,0.00027397,2]
[404685604,1770443447105,-151.0,0.00027397,2]
[404685605,1770443447115,-151.0,0.00027397,2]
[404685606,1770443447125,-151.0,0.00027397,2]
[404685607,1770443447134,-151.0,0.00027397,2]
[404685608,1770443447144,-151.0,0.00027397,2]
[404685609,1770443447154,-207.044636,0.00027397,2]
[404685611,1770443447164,-151.0,0.00027397,2]
[404685613,1770443447175,-151.0,0.00027397,2]
[404685614,1770443447185,-151.0,0.00027397,2]
[404685615,1770443447199,-151.0,0.00027397,2]
[404685616,1770443447211,-151.0,0.00027397,2]
[404685617,1770443447227,-204.435701,0.00027397,2]
[404685618,1770443447238,-246.715526,0.00027397,2]
[404685619,1770443447249,-246.715526,0.00027397,2]
[404685620,1770443447260,-246.715526,0.00027397,2]
[404685621,1770443447270,-151.0,0.00027397,2]
[404685622,1770443447280,-246.715526,0.00027397,2]
[404685623,1770443447291,-151.0,0.00027397,2]
[404685624,1770443447301,-246.715526,0.00027397,2]
[404685625,1770443447310,-151.000115,0.00027397,2]
[404685626,1770443447319,-246.715526,0.00027397,2]
[404685627,1770443447328,-151.0,0.00027397,2]
[404685628,1770443447338,-246.715526,0.00027397,2]
[404685629,1770443447347,-151.0,0.00027397,2]
[404685630,1770443447356,-151.0,0.00027397,2]
[404685631,1770443447365,-246.715526,0.00027397,2]
[404685632,1770443447374,-151.0,0.00027397,2]
[404685633,1770443447383,-246.715526,0.00027397,2]
[404685634,1770443447393,-151.0,0.00027397,2]
[404685635,1770443447402,-246.715526,0.00027397,2]
[404685636,1770443447411,-151.0,0.00027397,2]
[404685637,1770443447421,-246.715526,0.00027397,2]
[404685638,1770443447430,-151.0,0.00027397,2]
[404685639,1770443447443,-246.715526,0.00027397,2]
[404685640,1770443447452,-151.0,0.00027397,2]
[404685641,1770443447461,-1541.142873,0.00027397,2]
[404685642,1770443447471,-246.715526,0.00027397,2]
[404685643,1770443447480,-151.0,0.00027397,2]
[404685644,1770443447489,-246.715526,0.00027397,2]
[404685645,1770443447498,-1541.142873,0.00027397,2]
[404685646,1770443447507,-261.846698,0.00027397,2]
[404685647,1770443447517,-246.715526,0.00027397,2]
[404685648,1770443447526,-1541.142873,0.00027397,2]
[404685649,1770443447535,-1541.142873,0.00027397,2]
[404685650,1770443447544,-246.715526,0.00027397,2]
[404685651,1770443447553,-1541.142873,0.00027397,2]
[404685652,1770443447562,-246.715526,0.00027397,2]
[404685653,1770443447571,-246.715526,0.00027397,2]
[404685654,1770443447580,-246.715526,0.00027397,2]
[404685655,1770443447589,-1541.142873,0.00027397,2]
[404685656,1770443447598,-1541.142873,0.00027397,2]
[404685657,1770443447607,-246.715516,0.00027397,2]
[404685658,1770443447616,-1541.142873,0.00027397,2]
[404685659,1770443447625,-1541.142873,0.00027397,2]
[404685660,1770443447634,-1541.142873,0.00027397,2]
[404685661,1770443447642,-4388.608317,0.00027397,2]
[404685662,1770443447651,-1541.142873,0.00027397,2]
[404685663,1770443447660,-4388.608317,0.00027397,2]
[404685664,1770443447669,-1541.142873,0.00027397,2]
[404685665,1770443447677,-4388.608317,0.00027397,2]
[404685666,1770443447689,-1541.142873,0.00027397,2]
[404685667,1770443447698,-4388.608317,0.00027397,2]
[404685668,1770443447707,-1541.142873,0.00027397,2]
[404685669,1770443447717,-4388.608317,0.00027397,2]
[404685670,1770443447726,-1541.142873,0.00027397,2]
[404685671,1770443447735,-4388.608317,0.00027397,2]
[404685672,1770443447744,-1541.142873,0.00027397,2]
[404685673,1770443447753,-4388.608317,0.00027397,2]
[404685674,1770443447762,-1541.142873,0.00027397,2]
[404685675,1770443447770,-1541.142873,0.00027397,2]
[404685676,1770443447779,-4388.608317,0.00027397,2]
[404685677,1770443447788,-1541.142873,0.00027397,2]
[404685678,1770443447797,-4388.608317,0.00027397,2]
[404685679,1770443447806,-4388.608317,0.00027397,2]
[404685680,1770443447815,-1541.142866,0.00027397,2]
[404685681,1770443447824,-4388.608317,0.00027397,2]
[404685682,1770443447833,-4388.608317,0.00027397,2]
[404685683,1770443447843,-4388.608317,0.00027397,2]
[404685684,1770443447852,-4388.608317,0.00027397,2]
[404685685,1770443447862,-4388.608317,0.00027397,2]
[404685686,1770443447871,-4388.608317,0.00027397,2]
[404685687,1770443447880,-4388.608317,0.00027397,2]
[404685688,1770443447889,-4388.608317,0.00027397,2]
[404685689,1770443447898,-4388.608317,0.00027397,2]
[404685690,1770443447907,-237.715938,0.00027397,2]
[404685691,1770443447916,-4388.608326,0.00027397,2]
[404685692,1770443447925,-237.715938,0.00027397,2]
[404685693,1770443447935,-237.715938,0.00027397,2]
[404685694,1770443447949,-237.715938,0.00027397,2]
[404685695,1770443447958,-237.715938,0.00027397,2]
[404685696,1770443447966,-237.715938,0.00027397,2]
[404685697,1770443447975,-237.715938,0.00027397,2]
[404685698,1770443447984,-237.715938,0.00027397,2]
[404685699,1770443447993,-237.715938,0.00027397,2]
[404685700,1770443448002,-237.715938,0.00027397,2]
[404685701,1770443448011,-237.715938,0.00027397,2]
[404685702,1770443448020,-236.630466,0.00027397,2]
[404685703,1770443448030,-237.715938,0.00027397,2]
[404685704,1770443448039,-236.630466,0.00027397,2]
[404685705,1770443448048,-237.715938,0.00027397,2]
[404685706,1770443448058,-236.630466,0.00027397,2]
[404685707,1770443448067,-237.715938,0.00027397,2]
[404685708,1770443448076,-236.630466,0.00027397,2]
[404685709,1770443448085,-237.715938,0.00027397,2]
[404685710,1770443448095,-236.630466,0.00027397,2]
[404685711,1770443448104,-237.715938,0.00027397,2]
[404685712,1770443448113,-236.630466,0.00027397,2]
[404685713,1770443448122,-237.715938,0.00027397,2]
[404685714,1770443448131,-237.715938,0.00027397,2]
[404685715,1770443448140,-236.630466,0.00027397,2]
[404685716,1770443448149,-237.715938,0.00027397,2]
[404685717,1770443448158,-236.630466,0.00027397,2]
[404685718,1770443448168,-237.715935,0.00027397,2]
[404685719,1770443448177,-236.630466,0.00027397,2]
[404685720,1770443448189,-236.630466,0.00027397,2]
[404685721,1770443448198,-236.630466,0.00027397,2]
[404685722,1770443448208,-236.630466,0.00027397,2]
[404685723,1770443448223,-236.630466,0.00027397,2]
[404685724,1770443448232,-236.630466,0.00027397,2]
[404685725,1770443448241,-236.630466,0.00027397,2]
[404685726,1770443448344,-236.630466,0.00027397,2]
[404685727,1770443448354,-236.630466,0.00027397,2]
[404685728,1770443448364,-236.630466,0.00027397,2]
[404685729,1770443448374,-236.630466,0.00027397,2]
[404685730,1770443448383,-236.630468,0.00027397,2]
[404685731,1770443448393,-151.0,0.00027397,2]
[404685732,1770443448402,-241.031279,0.00027397,2]
[404685733,1770443448411,-151.0,0.00027397,2]
[404685734,1770443448421,-151.0,0.00027397,2]
[404685735,1770443448431,-252.397742,0.00027397,2]
[404685736,1770443448441,-151.0,0.00027397,2]
[404685737,1770443448451,-151.0,0.00027397,2]
[404685738,1770443448460,-151.0,0.00027397,2]
[404685739,1770443448469,-151.0,0.00027397,2]
[404685740,1770443448479,-151.0,0.00027397,2]
[404685741,1770443448488,-151.0,0.00027397,2]
[404685742,1770443448497,-292.223697,0.00027397,2]
[404685743,1770443448506,-151.0,0.00027397,2]
[404685744,1770443448515,-151.0,0.00027397,2]
[404685745,1770443448524,-151.0,0.00027397,2]
[404685746,1770443448533,-151.0,0.00027397,2]
[404685747,1770443448542,-276.749117,0.00027397,2]
[404685748,1770443448552,-484.945195,0.00027397,2]
[404685749,1770443448561,-484.945195,0.00027397,2]
[404685750,1770443448570,-484.945195,0.00027397,2]
[404685751,1770443448579,-484.945195,0.00027397,2]
[404685752,1770443448588,-151.0,0.00027397,2]
[404685753,1770443448597,-484.945195,0.00027397,2]
[404685754,1770443448606,-151.0,0.00027397,2]
[404685755,1770443448615,-484.945195,0.00027397,2]
[404685756,1770443448625,-151.0,0.00027397,2]
[404685757,1770443448634,-484.945195,0.00027397,2]
[404685758,1770443448644,-151.0,0.00027397,2]
[404685759,1770443448654,-484.945195,0.00027397,2]
[404685760,1770443448663,-245.550852,0.00027397,2]
[404685761,1770443448672,-484.945195,0.00027397,2]
[404685762,1770443448681,-484.945195,0.00027397,2]
[404685763,1770443448691,-484.945195,0.00027397,2]
[404685764,1770443448700,-165.841225,0.00027397,2]
[404685765,1770443448709,-484.945195,0.00027397,2]
[404685766,1770443448718,-484.945195,0.00027397,2]
[404685767,1770443448728,-484.945195,0.00027397,2]
[404685768,1770443448738,-484.945195,0.00027397,2]
[404685769,1770443448747,-484.945195,0.00027397,2]
[404685770,1770443448756,-484.945195,0.00027397,2]
[404685771,1770443448768,-484.945195,0.00027397,2]
[404685772,1770443448787,-484.945195,0.00027397,2]
[404685773,1770443448807,-484.945186,0.00027397,2]
[404685774,1770443448819,-150.0,0.00027397,5]
[404685775,1770443448831,-150.0,0.00027397,5]
[404685776,1770443448840,-487.0,0.00027397,2]
[404685777,1770443448852,-487.0,0.00027397,2]
[404685778,1770443448862,-487.0,0.00027397,2]
[404685779,1770443448872,-487.0,0.00027397,2]
[404685780,1770443448883,-487.0,0.00027397,2]
[404685781,1770443448894,-710.28,0.00027397,2]
[404685782,1770443448904,-490.71,0.000274,14]
[404685783,1770443448915,-2034.41,0.000274,2]
[404685784,1770443448925,-1018.4855263,0.000275,2]
[404685785,1770443448935,-1018.4855263,0.000275,2]
[404685786,1770443448948,-1018.4855263,0.000275,2]
[404685787,1770443448959,-1018.4855263,0.000275,2]
[404685788,1770443448969,-207.0,0.00027507,14]
[404685789,1770443448978,-151.22623315,0.00027541,2]
[404685790,1770443448987,-3157.88340577,0.00027602,2]
[404685791,1770443448996,-151.0,0.000277,13]
[404685792,1770443449006,-600.0,0.00027944,30]
[404685793,1770443449016,-250.0,0.00027945,5]
[404685794,1770443449027,-339.36968687,0.00027945,5]
[404685795,1770443449036,-1159.20770888,0.0002798,2]
[404685796,1770443449046,-100000.0,0.0002799,2]
[404685797,1770443449056,-317118.88249756,0.00028,2]
[404685798,1770443449223,-209470.39080196,0.00028,2]
[404685799,1770443449236,-8976.34002629,0.00028,2]
[404685800,1770443449361,-269.247383,0.00028,2]
[404685801,1770443449372,-60532.39079284,0.00028,2]
[404685802,1770443449540,-1958.39,0.00027387,10]
[404685803,1770443449549,-13143.83952199,0.00028,2]
[404685804,1770443519277,1000.0,0.000301,120]
[404685808,1770443651248,10000.0,0.000151,2]
[404685809,1770443713582,515.73504961,0.00013273,2]
[404685810,1770443716782,500.0,0.00013273,2]
[404685811,1770443716842,500.0,0.00013821,2]
[404685812,1770443720309,508.08707434,0.00013821,2]
[404685813,1770443720374,500.0,0.00013273,2]
[404685814,1770443766655,500.52447379,0.00013699,2]
[404685815,1770443939754,20000.0,0.000301,120]
[404685816,1770443999071,246.0,0.000301,120]
[404685817,1770444004690,500.0,0.00013273,2]
[404685818,1770444004755,1000.0,0.00013821,2]
[404685819,1770444004804,1629.46562522,0.00014368,2]
[404685820,1770444164118,-795.0,0.00023841,2]
[404685927,1770444638503,-697.41972064,0.00024772,2]
[404685929,1770444638513,-500.0,0.00024872,2]
[404685931,1770444638525,-816.0,0.00024872,2]
[404685933,1770444638535,-644.100847,0.0002588,2]
[404685935,1770444638544,-300.0,0.00026141,2]
[404685937,1770444638554,-3632.21351101,0.00026142,2]
[404685939,1770444638572,-4370.63812343,0.00026142,2]
[404685942,1770444638582,-1000.0,0.00026144,30]
[404685944,1770444638593,-5000.0,0.00027,2]
[404685946,1770444638603,-163.03599972,0.00027397,2]
[404685948,1770444638613,-156.982,0.00027397,16]
[404685950,1770444638623,-389.6565186,0.00027397,2]
[404685952,1770444638632,-150.0,0.00027397,5]
[404685954,1770444638642,-500.0,0.00027415,2]
[404685956,1770444638652,-500.0,0.00027415,2]
[404685958,1770444638662,-500.0,0.00027415,2]
[404685960,1770444638672,-500.0,0.00027415,2]
[404685962,1770444638681,-500.0,0.00027415,2]
[404685964,1770444638691,-500.0,0.00027415,2]
[404685966,1770444638701,-500.0,0.00027415,2]
[404685968,1770444638711,-500.0,0.00027415,2]
[404685970,1770444638720,-500.0,0.00027415,2]
[404685972,1770444638730,-500.0,0.00027415,2]
[404685974,1770444638742,-500.0,0.00027415,2]
[404685976,1770444638752,-500.0,0.00027415,2]
[404685978,1770444638761,-500.0,0.00027415,2]
[404685980,1770444638771,-500.0,0.00027415,2]
[404685982,1770444638781,-500.0,0.00027415,2]
[404685984,1770444638791,-500.0,0.00027415,2]
[404685986,1770444638801,-500.0,0.00027415,2]
[404685988,1770444638811,-500.0,0.00027415,2]
[404685990,1770444638820,-500.0,0.00027415,2]
[404685992,1770444638830,-601.2645129,0.00027415,2]
[404685994,1770444638840,-391.75933966,0.00027415,2]
[404685996,1770444638849,-500.0,0.00027415,2]
[404685998,1770444638860,-500.0,0.00027415,2]
[404686000,1770444638869,-500.0,0.00027415,2]
[404686002,1770444638879,-500.0,0.00027415,2]
[404686004,1770444638888,-500.0,0.00027415,2]
[404686006,1770444638898,-500.0,0.00027415,2]
[404686008,1770444638908,-500.0,0.00027415,2]
[404686010,1770444638917,-500.0,0.00027415,2]
[404686011,1770444638927,-252.60999498,0.00027415,2]
[404686012,1770444638937,-500.0,0.00027415,2]
[404686013,1770444638947,-500.0,0.00027415,2]
[404686014,1770444638957,-500.0,0.00027415,2]
[404686015,1770444638967,-500.0,0.00027415,2]
[404686016,1770444638977,-500.0,0.00027415,2]
[404686017,1770444638991,-500.0,0.00027415,2]
[404686018,1770444639001,-500.0,0.00027415,2]
[404686019,1770444639011,-500.0,0.00027415,2]
[404686020,1770444639021,-500.0,0.00027415,2]
[404686021,1770444639031,-500.0,0.00027415,2]
[404686022,1770444639042,-200.31798026,0.00027415,2]
[404686023,1770444639052,-500.0,0.00027415,2]
[404686024,1770444639062,-303.77480763,0.00027415,2]
[404686025,1770444639071,-500.0,0.00027415,2]
[404686026,1770444639082,-500.0,0.00027415,2]
[404686027,1770444639092,-500.0,0.00027415,2]
[404686028,1770444639102,-500.0,0.00027415,2]
[404686029,1770444639112,-168.0,0.00027416,2]
[404686030,1770444639122,-5238.43369261,0.00027416,2]
[404686052,1770444645571,-20038.0455,0.00027416,2]
[404686053,1770444645583,-578.6470964,0.00027416,2]
[404686057,1770444646568,-1373.05315807,0.00027416,2]
[404686058,1770444646580,-7575.14532465,0.00027416,2]
[404686061,1770444686297,500.0,0.00027942,120]
[404686063,1770444846052,500.0,0.00027394,120]
[404686064,1770444846285,500.0,0.00027394,120]
[404686065,1770444846548,235.79702266,0.00027394,120]
[404686066,1770445238866,500.0,0.00027134,120]
[404686067,1770445239342,500.0,0.00027134,120]
[404686068,1770445239401,500.0,0.00027134,120]
[404686070,1770445239587,215.78676046,0.00027415,120]
[404686073,1770445515154,491.3205396,0.00027134,120]
[404686075,1770445675839,152.77913467,0.00030136,120]
[404686078,1770445773115,-1703.82868502,0.00017644,2]
[404686111,1770445832673,-2996.17131498,0.00017468,2]
[404686112,1770445832683,-150.0,0.00017778,2]
[404686113,1770445832693,-2364.43931393,0.00017902,2]
[404686114,1770445832702,-300.0,0.00017911,2]
[404686115,1770445832711,-225.0,0.00017911,2]
[404686116,1770445832721,-300.0,0.00017911,2]
[404686117,1770445832731,-300.0,0.00017911,2]
[404686118,1770445832740,-7871.27085001,0.00017912,2]
[404686119,1770445832749,-233.47383477,0.00018002,2]
[404686120,1770445832759,-355.5908867,0.00018002,2]
[404686121,1770445832768,-210.19548218,0.00018002,2]
[404686122,1770445832777,-500.0,0.00018002,2]
[404686123,1770445832787,-500.0,0.00018002,2]
[404686124,1770445832796,-500.0,0.00018002,2]
[404686125,1770445832807,-500.0,0.00018002,2]
[404686126,1770445832816,-500.0,0.00018002,2]
[404686127,1770445832826,-519.21281116,0.00018002,2]
[404686128,1770445832836,-500.0,0.00018002,2]
[404686129,1770445832846,-468.33851336,0.00018002,2]
[404686130,1770445832855,-500.0,0.00018002,2]
[404686131,1770445832864,-500.0,0.00018002,2]
[404686132,1770445832874,-500.0,0.00018002,2]
[404686133,1770445832883,-500.0,0.00018002,2]
[404686134,1770445832897,-12385.51267893,0.00018002,2]
[404686149,1770445838677,-193.18133618,0.00018002,2]
[404686151,1770445838687,-37614.48732107,0.00018002,2]
[404686153,1770445838696,-31062.3596275,0.00018003,2]
[404686155,1770445838706,-155.98,0.000189,2]
[404686157,1770445838716,-303.10001603,0.000189,2]
[404686159,1770445838725,-303.10001603,0.00019089,2]
[404686161,1770445838735,-303.10001603,0.00019278,2]
[404686163,1770445838744,-176.44,0.000193,2]
[404686165,1770445838753,-303.10001603,0.00019467,2]
[404686167,1770445838762,-243.0,0.00019545,2]
[404686169,1770445838772,-420.0,0.00019545,2]
[404686171,1770445838781,-303.10001603,0.00019656,2]
[404686173,1770445838790,-177.0,0.00019778,2]
[404686175,1770445838800,-2364.43931393,0.00020985,2]
[404686177,1770445838809,-587.0,0.00021327,2]
[404686179,1770445838819,-1042.8540861,0.000215,2]
[404686182,1770445838828,-1308.99056306,0.000215,2]
[404686183,1770445838837,-204.0,0.00021778,2]
[404686185,1770445838847,-500.0,0.00023147,2]
[404686187,1770445838857,-154.67,0.000232,7]
[404686189,1770445838866,-823.0,0.00023273,2]
[404686190,1770445838875,-231.0,0.00023778,2]
[404686192,1770445838885,-2000.0,0.000248,7]
[404686194,1770445838896,-2000.0,0.0002532,7]
[404686196,1770445838907,-957.0,0.00025395,2]
[404686198,1770445838917,-258.0,0.00025778,2]
[404686200,1770445838927,-2000.0,0.0002584,7]
[404686202,1770445838936,-1087.51746792,0.00026036,2]
[404686204,1770445838946,-2000.0,0.0002636,7]
[404686206,1770445838956,-194.72792766,0.00026392,2]
[404686208,1770445838965,-201.93286099,0.00026392,2]
[404686210,1770445838976,-209.40437684,0.00026392,2]
[404686212,1770445838985,-217.15233878,0.00026392,2]
[404686214,1770445838995,-225.18697532,0.00026392,2]
[404686216,1770445839004,-233.51889341,0.00026392,2]
[404686218,1770445839013,-242.15909246,0.00026392,2]
[404686219,1770445839023,-251.11897888,0.00026392,2]
[404686221,1770445839032,-260.4103811,0.00026392,2]
[404686223,1770445839042,-270.0455652,0.00026392,2]
[404686225,1770445839052,-280.03725112,0.00026392,2]
[404686227,1770445839061,-290.39862941,0.00026392,2]
[404686229,1770445839071,-301.1433787,0.00026392,2]
[404686231,1770445839080,-156.982,0.000265,13]
[404686233,1770445839089,-500.0,0.00026561,7]
[404686234,1770445839098,-2000.0,0.0002688,7]
[404686236,1770445839108,-711.0,0.00026984,3]
[404686238,1770445839116,-5000.0,0.00027,2]
[404686239,1770445839126,-294.15327595,0.00027,2]
[404686240,1770445839135,-154.67,0.00027,7]
[404686241,1770445839154,-150.0,0.00027397,5]
[404686242,1770445839165,-711.0,0.000274,3]
[404686243,1770445839175,-2000.0,0.000274,7]
[404686244,1770445839185,-1841.04,0.00027406,10]
[404686245,1770445839195,-1534.2,0.00027406,10]
[404686246,1770445839206,-634.66498338,0.00027415,2]
[404686247,1770445839217,-701.38173349,0.00027415,2]
[404686248,1770445839227,-410.30570866,0.00027415,2]
[404686249,1770445839237,-293.46479949,0.00027415,2]
[404686250,1770445839246,-368.09110254,0.00027415,2]
[404686251,1770445839256,-662.56398458,0.00027415,2]
[404686252,1770445839266,-1246.90085953,0.00027415,2]
[404686253,1770445839276,-2000.0,0.00027415,2]
[404686254,1770445839286,-521.71519909,0.00027415,2]
[404686255,1770445839296,-31646.2658541,0.00027416,2]
[404686256,1770445839307,-2743.058372,0.00027416,2]
[404686257,1770445839316,-738.55027558,0.00027444,2]
[404686258,1770445839326,-1177.89152814,0.00027444,2]
[404686259,1770445839336,-182.32819122,0.00027562,14]
[404686260,1770445839346,-368.0,0.00027703,10]
[404686261,1770445839356,-285.0,0.00027778,2]
[404686262,1770445839366,-2000.0,0.0002792,7]
[404686263,1770445839375,-250.0,0.00027945,5]
[404686264,1770445839384,-160.97611703,0.00027972,5]
[404686265,1770445839393,-160.0,0.00027972,5]
[404686266,1770445839403,-1202466.29038445,0.00028,2]
[404686274,1770445845683,-2364.43931393,0.00024068,2]
[404686275,1770445845692,-2364.43931393,0.00027151,2]
[404686276,1770445845702,-259.64245179,0.00028,2]
[404686277,1770445845713,-4952.31134479,0.00028,2]
[404686300,1770446280868,176.05,9.99e-05,3]
[404686301,1770446281162,176.04,9.99e-05,3]
[404686307,1770446706021,459.592,0.00013273,2]
[404686352,1770447031881,-404.9187168,0.00020975,2]
[404686353,1770447031890,-150.0,0.00021187,2]
[404686357,1770447031910,-160.44,0.000214,2]
[404686360,1770447031920,-240.67,0.000214,2]
[404686363,1770447031930,-1169.159877,0.00021681,2]
[404686366,1770447031940,-150.0,0.00021688,2]
[404686369,1770447031950,-1000.0,0.00021689,2]
[404686372,1770447031959,-3345.40431439,0.00021689,2]
[404686374,1770447031972,-940.06947016,0.00021689,2]
[404686523,1770447039955,-3180.86744562,0.00021689,2]
[404686524,1770447039965,-200.0,0.00021907,6]
[404686525,1770447039974,-4897.49327798,0.00022084,2]
[404686538,1770447044594,-9280.43491543,0.00022084,2]
[404686539,1770447044607,-3264.46291619,0.00022084,2]
[404686540,1770447044617,-6748.03738382,0.00022164,2]
[404686546,1770447045696,-34.77201398,0.00022164,2]
[404686547,1770447045860,-7457.99461746,0.00022164,2]
[404686548,1770447045870,-179.38026036,0.00022164,5]
[404686549,1770447045879,-182.04239336,0.00022164,5]
[404686550,1770447045889,-179.38026036,0.0002285,5]
[404686551,1770447045898,-871.849572,0.00023042,2]
[404686552,1770447045908,-177.0,0.00023187,2]
[404686553,1770447045917,-1869.53006666,0.00023456,2]
[404686554,1770447045926,-500.0,0.00023799,2]
[404686555,1770447045935,-500.0,0.00023799,2]
[404686556,1770447045944,-500.0,0.00023799,2]
[404686557,1770447045954,-500.77636581,0.00023799,2]
[404686558,1770447045963,-207.6779216,0.00023799,2]
[404686559,1770447045972,-500.0,0.00023799,2]
[404686560,1770447045981,-500.0,0.00023799,2]
[404686561,1770447045991,-500.0,0.00023799,2]
[404686562,1770447046002,-500.0,0.00023799,2]
[404686563,1770447046011,-326.49811119,0.00023799,2]
[404686564,1770447046020,-19373.15251554,0.000238,2]
[404686565,1770447046031,-952.52802166,0.000238,2]
[404686566,1770447046041,-163.15165771,0.00024287,5]
[404686567,1770447046050,-1667.773889,0.00024616,2]
[404686568,1770447046059,-1946.33431043,0.00024742,2]
[404686569,1770447046068,-814.36481858,0.00024742,2]
[404686570,1770447046077,-194.5942924,0.00024909,2]
[404686571,1770447046086,-204.0,0.00025187,2]
[404686572,1770447046096,-557.967024,0.00025528,2]
[404686573,1770447046106,-1667.773889,0.00025652,2]
[404686574,1770447046116,-1865.50886527,0.0002574,2]
[404686576,1770447057415,6330.0,0.00030136,120]
[404686577,1770447064080,151.88240512,0.00013699,2]
[404686589,1770448084403,321.54,9.99e-05,2]
[404686607,1770448231895,-2523.52712732,0.00018059,2]
[404686609,1770448231905,-5000.0,0.00018241,2]
[404686610,1770448231914,-208.0,0.00018424,2]
[404686612,1770448231924,-1200.0,0.00018424,2]